[Event "Goteborg Open 2024"]
[Site "Goteborgs Schackcentrum, Vegatan 20, Gothenburg, Sweden"]
[Date "2024.08.04"]
[Round "7.9"]
[White "Ask, Josef"]
[Black "Gallardo, Guillermo"]
[Result "1-0"]
[TimeControl "15 minutes + 5 seconds per move from move one (Round 1 - 4) / 90 minutes + 30 seconds per move from move one (Round 5 - 8)"]
[WhiteTitle "FM"]
[WhiteFideId "1704583"]
[BlackFideId "1773488"]
[WhiteElo "2129"]
[BlackElo "1822"]

1. c4 {[%clk 01:30:57]} {[%emt 00:00:02]} c5 {[%clk 01:30:49]} {[%emt
00:00:12]} 2. Nc3 {[%clk 01:31:02]} {[%emt 00:00:25]} Nc6 {[%clk 01:30:31]}
{[%emt 00:00:47]} 3. g3 {[%clk 01:30:49]} {[%emt 00:00:44]} g6 {[%clk
01:30:10]} {[%emt 00:00:50]} 4. Bg2 {[%clk 01:31:04]} {[%emt 00:00:15]} Bg7
{[%clk 01:30:33]} {[%emt 00:00:07]} 5. Rb1 {[%clk 01:31:03]} {[%emt 00:00:31]}
e6 {[%clk 01:29:32]} {[%emt 00:01:31]} 6. a3 {[%clk 01:30:53]} {[%emt
00:00:40]} a5 {[%clk 01:29:12]} {[%emt 00:00:50]} 7. e4 {[%clk 01:27:49]}
{[%emt 00:03:35]} d6 {[%clk 01:26:05]} {[%emt 00:03:37]} 8. Nge2 {[%clk
01:27:54]} {[%emt 00:00:24]} Nge7 {[%clk 01:25:11]} {[%emt 00:01:24]} 9. Nb5
{[%clk 01:26:16]} {[%emt 00:02:08]} O-O {[%clk 01:23:21]} {[%emt 00:02:20]} 10.
d4 {[%clk 01:18:36]} {[%emt 00:08:11]} cxd4 {[%clk 01:00:16]} {[%emt 00:23:35]}
11. Nexd4 {[%clk 01:18:32]} {[%emt 00:00:34]} Nxd4 {[%clk 00:57:49]} {[%emt
00:02:57]} 12. Nxd4 {[%clk 01:18:47]} {[%emt 00:00:14]} Bd7 {[%clk 00:57:31]}
{[%emt 00:00:49]} 13. Bg5 {[%clk 01:14:17]} {[%emt 00:04:59]} Re8 {[%clk
00:55:01]} {[%emt 00:03:01]} 14. O-O {[%clk 01:10:20]} {[%emt 00:04:27]} Qb6
{[%clk 00:52:12]} {[%emt 00:03:18]} 15. Be3 {[%clk 01:10:20]} {[%emt 00:00:31]}
Qc7 {[%clk 00:50:47]} {[%emt 00:01:55]} 16. Rc1 {[%clk 01:09:24]} {[%emt
00:01:25]} Bc6 {[%clk 00:43:11]} {[%emt 00:08:07]} 17. Qd2 {[%clk 01:08:23]}
{[%emt 00:01:30]} Nc8 {[%clk 00:38:48]} {[%emt 00:04:52]} 18. Rfd1 {[%clk
01:07:10]} {[%emt 00:01:44]} e5 {[%clk 00:38:56]} {[%emt 00:00:23]} 19. Nb5
{[%clk 01:06:15]} {[%emt 00:01:25]} Bxb5 {[%clk 00:38:50]} {[%emt 00:00:35]} 20.
cxb5 {[%clk 01:06:26]} {[%emt 00:00:19]} Qd7 {[%clk 00:34:03]} {[%emt
00:05:17]} 21. b6 {[%clk 01:06:30]} {[%emt 00:00:26]} 1-0

[Event "Goteborg Open 2024"]
[Site "Goteborgs Schackcentrum, Vegatan 20, Gothenburg, Sweden"]
[Date "2024.08.04"]
[Round "7.10"]
[White "Lindholm, Marcus"]
[Black "Green, David"]
[Result "1-0"]
[TimeControl "15 minutes + 5 seconds per move from move one (Round 1 - 4) / 90 minutes + 30 seconds per move from move one (Round 5 - 8)"]
[WhiteFideId "1743473"]
[BlackFideId "1769332"]
[WhiteElo "1851"]
[BlackElo "1946"]

1. d4 {[%clk 01:27:09]} {[%emt 00:03:52]} d5 {[%clk 01:30:47]} {[%emt
00:00:13]} 2. c4 {[%clk 01:27:15]} {[%emt 00:00:23]} c6 {[%clk 01:31:05]}
{[%emt 00:00:12]} 3. Nc3 {[%clk 01:27:38]} {[%emt 00:00:07]} e6 {[%clk
01:31:30]} {[%emt 00:00:05]} 4. cxd5 {[%clk 01:27:53]} {[%emt 00:00:14]} exd5
{[%clk 01:31:50]} {[%emt 00:00:11]} 5. Nf3 {[%clk 01:27:16]} {[%emt 00:01:06]}
Nf6 {[%clk 01:31:38]} {[%emt 00:00:44]} 6. Bg5 {[%clk 01:27:34]} {[%emt
00:00:11]} Be7 {[%clk 01:31:05]} {[%emt 00:01:03]} 7. e3 {[%clk 01:27:44]}
{[%emt 00:00:20]} O-O {[%clk 01:30:37]} {[%emt 00:00:58]} 8. Bd3 {[%clk
01:28:00]} {[%emt 00:00:14]} Nbd7 {[%clk 01:29:18]} {[%emt 00:01:49]} 9. O-O
{[%clk 01:27:58]} {[%emt 00:00:31]} Re8 {[%clk 01:28:18]} {[%emt 00:01:30]} 10.
h3 {[%clk 01:24:38]} {[%emt 00:03:50]} h6 {[%clk 01:23:54]} {[%emt 00:04:55]}
11. Bf4 {[%clk 01:23:39]} {[%emt 00:01:29]} Nf8 {[%clk 01:18:04]} {[%emt
00:06:19]} 12. Qc2 {[%clk 01:23:41]} {[%emt 00:00:29]} Bd6 {[%clk 01:17:10]}
{[%emt 00:01:24]} 13. Bxd6 {[%clk 01:20:27]} {[%emt 00:03:44]} Qxd6 {[%clk
01:17:12]} {[%emt 00:00:28]} 14. Rad1 {[%clk 01:17:14]} {[%emt 00:03:42]} N8h7
{[%clk 01:09:43]} {[%emt 00:07:59]} 15. Ne5 {[%clk 01:16:12]} {[%emt 00:01:33]}
Ng5 {[%clk 01:07:20]} {[%emt 00:02:52]} 16. f4 {[%clk 01:13:14]} {[%emt
00:03:27]} Nge4 {[%clk 01:05:20]} {[%emt 00:02:31]} 17. Nxe4 {[%clk 01:13:22]}
{[%emt 00:00:22]} dxe4 {[%clk 01:03:44]} {[%emt 00:02:06]} 18. Bxe4 {[%clk
01:13:32]} {[%emt 00:00:20]} Nxe4 {[%clk 01:02:14]} {[%emt 00:01:59]} 19. Qxe4
{[%clk 01:13:54]} {[%emt 00:00:09]} f6 {[%clk 00:55:44]} {[%emt 00:07:00]} 20.
Qg6 {[%clk 01:13:53]} {[%emt 00:00:29]} Qe7 {[%clk 00:54:13]} {[%emt 00:01:58]}
21. Nc4 {[%clk 01:12:04]} {[%emt 00:02:23]} b5 {[%clk 00:48:09]} {[%emt
00:06:35]} 22. Nd6 {[%clk 01:11:40]} {[%emt 00:00:54]} Qxe3+ {[%clk 00:43:58]}
{[%emt 00:04:42]} 23. Kh2 {[%clk 01:11:22]} {[%emt 00:00:47]} Re7 {[%clk
00:39:28]} {[%emt 00:05:00]} 24. Rde1 {[%clk 01:10:33]} {[%emt 00:01:20]} Qxe1
{[%clk 00:37:20]} {[%emt 00:02:37]} 25. Rxe1 {[%clk 01:10:56]} {[%emt
00:00:07]} Rxe1 {[%clk 00:37:34]} {[%emt 00:00:16]} 26. Qf7+ {[%clk 01:11:20]}
{[%emt 00:00:06]} Kh7 {[%clk 00:37:37]} {[%emt 00:00:27]} 27. Ne8 {[%clk
01:11:42]} {[%emt 00:00:08]} Rxe8 {[%clk 00:37:44]} {[%emt 00:00:24]} 28. Qxe8
{[%clk 01:12:05]} {[%emt 00:00:06]} Bb7 {[%clk 00:37:57]} {[%emt 00:00:18]} 29.
Qd7 {[%clk 01:12:26]} {[%emt 00:00:08]} Bc8 {[%clk 00:37:44]} {[%emt 00:00:39]}
30. Qxc6 {[%clk 01:12:21]} {[%emt 00:00:39]} Rb8 {[%clk 00:38:14]} {[%emt
00:00:01]} 31. g4 {[%clk 01:10:34]} {[%emt 00:02:17]} Kg6 {[%clk 00:37:52]}
{[%emt 00:00:51]} 32. d5 {[%clk 01:10:30]} {[%emt 00:00:34]} h5 {[%clk
00:37:47]} {[%emt 00:00:35]} 33. Qe8+ {[%clk 01:10:34]} {[%emt 00:00:26]} 1-0

[Event "Goteborg Open 2024"]
[Site "Goteborgs Schackcentrum, Vegatan 20, Gothenburg, Sweden"]
[Date "2024.08.04"]
[Round "7.11"]
[White "Eldh, Hjalmar"]
[Black "Thern, Alfred"]
[Result "1/2-1/2"]
[TimeControl "15 minutes + 5 seconds per move from move one (Round 1 - 4) / 90 minutes + 30 seconds per move from move one (Round 5 - 8)"]
[WhiteFideId "1767968"]
[BlackFideId "1775227"]
[WhiteElo "1897"]
[BlackElo "1729"]

1. e4 {[%clk 01:30:57]} {[%emt 00:00:02]} c5 {[%clk 01:30:42]} {[%emt
00:00:19]} 2. Nf3 {[%clk 01:31:18]} {[%emt 00:00:10]} Nc6 {[%clk 01:30:53]}
{[%emt 00:00:19]} 3. Bb5 {[%clk 01:31:36]} {[%emt 00:00:12]} e5 {[%clk
01:30:28]} {[%emt 00:00:55]} 4. O-O {[%clk 01:31:42]} {[%emt 00:00:23]} Bd6
{[%clk 01:30:41]} {[%emt 00:00:18]} 5. c3 {[%clk 01:31:52]} {[%emt 00:00:20]}
Nge7 {[%clk 01:29:56]} {[%emt 00:01:15]} 6. d4 {[%clk 01:31:49]} {[%emt
00:00:32]} cxd4 {[%clk 01:29:30]} {[%emt 00:00:57]} 7. cxd4 {[%clk 01:32:11]}
{[%emt 00:00:07]} exd4 {[%clk 01:29:16]} {[%emt 00:00:44]} 8. Nxd4 {[%clk
01:32:32]} {[%emt 00:00:09]} O-O {[%clk 01:26:51]} {[%emt 00:02:57]} 9. Nc3
{[%emt 00:01:17]} a6 {[%clk 01:21:47]} {[%emt 00:05:32]} 10. Bxc6 {[%clk
01:28:14]} {[%emt 00:04:01]} dxc6 {[%clk 01:20:40]} {[%emt 00:01:37]} 11. Bg5
{[%clk 01:26:12]} {[%emt 00:02:32]} h6 {[%clk 01:15:56]} {[%emt 00:05:15]} 12.
Be3 {[%emt 00:05:19]} f5 {[%clk 01:12:19]} {[%emt 00:00:14]} 13. Qb3+ {[%clk
01:22:41]} {[%emt 00:03:03]} Kh8 {[%clk 01:11:10]} {[%emt 00:01:40]} 14. Ne6
{[%clk 01:22:52]} {[%emt 00:00:17]} Bxe6 {[%clk 01:11:09]} {[%emt 00:00:33]} 15.
Qxe6 {[%clk 01:23:17]} {[%emt 00:00:06]} Rf6 {[%clk 01:07:55]} {[%emt
00:03:44]} 16. Qb3 {[%clk 01:23:38]} {[%emt 00:00:08]} Qc7 {[%clk 01:02:03]}
{[%emt 00:06:22]} 17. f4 {[%clk 01:19:01]} {[%emt 00:05:07]} fxe4 {[%clk
00:55:23]} {[%emt 00:07:10]} 18. Nxe4 {[%clk 01:19:05]} {[%emt 00:00:26]} Rff8
{[%clk 00:53:59]} {[%emt 00:01:54]} 19. Nxd6 {[%clk 01:17:01]} {[%emt
00:02:35]} Qxd6 {[%clk 00:54:10]} {[%emt 00:00:18]} 20. Rad1 {[%clk 01:17:10]}
{[%emt 00:00:20]} Qc7 {[%clk 00:37:48]} {[%emt 00:16:53]} 21. Bb6 {[%clk
01:15:16]} {[%emt 00:02:23]} Qc8 {[%clk 00:35:29]} {[%emt 00:02:50]} 22. Bc5
{[%clk 01:15:25]} {[%emt 00:00:20]} Re8 {[%clk 00:34:18]} {[%emt 00:01:42]} 23.
Qf7 {[%clk 01:12:58]} {[%emt 00:02:54]} Qf5 {[%clk 00:31:22]} {[%emt 00:03:29]}
24. Qxf5 {[%clk 01:12:53]} {[%emt 00:00:36]} Nxf5 {[%clk 00:31:50]} {[%emt
00:00:02]} 25. Rd7 {[%clk 01:13:04]} {[%emt 00:00:16]} b6 {[%clk 00:29:50]}
{[%emt 00:02:32]} 26. Bxb6 {[%clk 01:11:56]} {[%emt 00:01:38]} Rab8 {[%clk
00:30:07]} {[%emt 00:00:13]} 27. Bc7 {[%clk 01:12:12]} {[%emt 00:00:14]} Rxb2
{[%clk 00:28:21]} {[%emt 00:02:17]} 28. Be5 {[%clk 01:12:04]} {[%emt 00:00:35]}
Re2 {[%clk 00:23:49]} {[%emt 00:05:04]} 29. Rc1 {[%clk 01:07:43]} {[%emt
00:04:51]} Re7 {[%clk 00:18:10]} {[%emt 00:06:10]} 30. Rd3 {[%clk 01:06:23]}
{[%emt 00:01:50]} Ne3 {[%clk 00:14:21]} {[%emt 00:04:18]} 31. Rxc6 {[%clk
01:05:15]} {[%emt 00:01:36]} Rxg2+ {[%clk 00:13:44]} {[%emt 00:01:10]} 32. Kh1
{[%clk 01:05:37]} {[%emt 00:00:07]} Re2 {[%clk 00:12:53]} {[%emt 00:01:21]} 33.
Rxh6+ {[%clk 01:05:30]} {[%emt 00:00:38]} Kg8 {[%clk 00:13:08]} {[%emt
00:00:15]} 34. Rb6 {[%clk 01:05:30]} {[%emt 00:00:24]} Ng4 {[%clk 00:12:03]}
{[%emt 00:01:41]} 35. Rg3 {[%clk 00:51:14]} {[%emt 00:14:44]} Nxe5 {[%clk
00:10:42]} {[%emt 00:01:52]} 36. fxe5 {[%clk 00:51:36]} {[%emt 00:00:08]} Rxa2
{[%clk 00:10:01]} {[%emt 00:01:10]} 37. e6 {[%clk 00:50:07]} {[%emt 00:01:59]}
Re2 {[%clk 00:09:18]} {[%emt 00:01:13]} 38. Rxa6 {[%clk 00:48:58]} 1/2-1/2

[Event "Goteborg Open 2024"]
[Site "Goteborgs Schackcentrum, Vegatan 20, Gothenburg, Sweden"]
[Date "2024.08.04"]
[Round "7.12"]
[White "Lifmark, Kaspar"]
[Black "Johansson, Eva"]
[Result "0-1"]
[TimeControl "15 minutes + 5 seconds per move from move one (Round 1 - 4) / 90 minutes + 30 seconds per move from move one (Round 5 - 8)"]
[WhiteFideId "1742396"]
[BlackFideId "1724584"]
[WhiteElo "1672"]
[BlackElo "1878"]

1. e4 {[%clk 01:30:58]} {[%emt 00:00:01]} d6 {[%clk 01:30:54]} {[%emt
00:00:06]} 2. d4 {[%clk 01:31:22]} {[%emt 00:00:06]} Nf6 {[%clk 01:31:11]}
{[%emt 00:00:13]} 3. Nc3 {[%clk 01:31:50]} {[%emt 00:00:02]} Nbd7 {[%clk
01:31:32]} {[%emt 00:00:10]} 4. f4 {[%clk 01:31:53]} {[%emt 00:00:26]} e5
{[%clk 01:31:07]} {[%emt 00:00:55]} 5. Nf3 {[%clk 01:30:42]} {[%emt 00:01:41]}
exf4 {[%clk 01:26:33]} {[%emt 00:05:04]} 6. Bxf4 {[%clk 01:30:08]} {[%emt
00:01:04]} Nb6 {[%clk 01:26:43]} {[%emt 00:00:20]} 7. Qd2 {[%clk 01:27:53]}
{[%emt 00:02:45]} Be6 {[%clk 01:21:19]} {[%emt 00:05:51]} 8. d5 {[%clk
01:23:27]} {[%emt 00:04:58]} Bd7 {[%clk 01:20:08]} {[%emt 00:01:41]} 9. O-O-O
{[%clk 01:22:37]} {[%emt 00:01:21]} Be7 {[%clk 01:17:06]} {[%emt 00:03:32]} 10.
h3 {[%clk 01:20:17]} {[%emt 00:02:50]} a6 {[%clk 01:12:47]} {[%emt 00:04:50]}
11. g4 {[%clk 01:19:27]} {[%emt 00:01:19]} Na4 {[%clk 01:10:36]} {[%emt
00:02:41]} 12. Re1 {[%clk 01:11:27]} {[%emt 00:08:31]} O-O {[%clk 01:08:42]}
{[%emt 00:02:23]} 13. Nd4 {[%clk 01:06:49]} {[%emt 00:05:08]} Nxc3 {[%clk
01:06:47]} {[%emt 00:02:26]} 14. Qxc3 {[%clk 01:06:20]} {[%emt 00:00:58]} Rc8
{[%clk 01:05:48]} {[%emt 00:01:28]} 15. Qb3 {[%clk 00:48:23]} {[%emt 00:18:28]}
c5 {[%clk 01:01:03]} {[%emt 00:05:15]} 16. Nf5 {[%clk 00:46:14]} {[%emt
00:02:39]} b5 {[%clk 01:00:51]} {[%emt 00:00:41]} 17. Bxd6 {[%clk 00:45:03]}
{[%emt 00:01:43]} Bxf5 {[%clk 00:59:07]} {[%emt 00:02:11]} 18. Bxe7 {[%clk
00:44:13]} {[%emt 00:01:23]} Qxe7 {[%clk 00:59:24]} {[%emt 00:00:11]} 19. gxf5
{[%clk 00:42:16]} {[%emt 00:02:28]} c4 {[%clk 00:59:34]} {[%emt 00:00:20]} 20.
Qe3 {[%clk 00:39:57]} {[%emt 00:02:49]} c3 {[%clk 00:59:29]} {[%emt 00:00:35]}
21. Rg1 {[%clk 00:37:41]} {[%emt 00:02:46]} Qb4 {[%clk 00:55:19]} {[%emt
00:04:40]} 22. b3 {[%clk 00:33:52]} {[%emt 00:04:19]} Rfd8 {[%clk 00:48:04]}
{[%emt 00:07:43]} 23. Qh6 {[%clk 00:29:23]} {[%emt 00:05:01]} Ne8 {[%clk
00:48:10]} {[%emt 00:00:22]} 24. Rxg7+ {[%clk 00:29:28]} {[%emt 00:00:27]} Nxg7
{[%clk 00:48:20]} {[%emt 00:00:20]} 25. f6 {[%clk 00:28:18]} {[%emt 00:01:41]}
Qa3+ {[%clk 00:45:30]} {[%emt 00:03:20]} 26. Kd1 {[%clk 00:28:13]} {[%emt
00:00:34]} Qf8 {[%clk 00:45:50]} {[%emt 00:00:09]} 27. Bd3 {[%clk 00:25:24]}
{[%emt 00:03:20]} Ne6 {[%clk 00:44:10]} {[%emt 00:02:05]} 28. Rg1+ {[%clk
00:23:33]} {[%emt 00:02:26]} Kh8 {[%clk 00:44:18]} {[%emt 00:00:10]} 29. Qh4
{[%clk 00:19:38]} {[%emt 00:04:37]} Qc5 {[%clk 00:43:01]} {[%emt 00:01:46]} 30.
Rg4 {[%clk 00:15:09]} {[%emt 00:05:00]} Qe3 {[%clk 00:41:05]} {[%emt 00:02:26]}
31. Rg2 {[%clk 00:15:17]} {[%emt 00:00:22]} Qf3+ {[%clk 00:39:30]} {[%emt
00:01:50]} 32. Re2 {[%clk 00:15:14]} {[%emt 00:00:47]} Rg8 {[%clk 00:39:23]}
{[%emt 00:00:37]} 33. Kc1 {[%clk 00:13:19]} {[%emt 00:02:26]} Rg1+ {[%clk
00:39:27]} {[%emt 00:00:24]} 34. Re1 {[%clk 00:13:41]} {[%emt 00:00:10]} Qe3+
{[%clk 00:39:18]} {[%emt 00:00:36]} 35. Kd1 {[%clk 00:13:41]} {[%emt 00:00:33]}
Qd2# 0-1

[Event "Goteborg Open 2024"]
[Site "Goteborgs Schackcentrum, Vegatan 20, Gothenburg, Sweden"]
[Date "2024.08.04"]
[Round "7.13"]
[White "Bergdahl, Martin"]
[Black "Torres, Lucas"]
[Result "0-1"]
[TimeControl "15 minutes + 5 seconds per move from move one (Round 1 - 4) / 90 minutes + 30 seconds per move from move one (Round 5 - 8)"]
[WhiteFideId "1782231"]
[BlackFideId "1769464"]
[WhiteElo "1711"]
[BlackElo "1861"]

1. e4 {[%clk 01:30:53]} {[%emt 00:00:07]} e6 {[%clk 01:18:28]} {[%emt
00:12:32]} 2. d4 {[%clk 01:31:15]} {[%emt 00:00:08]} d5 {[%clk 01:18:57]} 3.
exd5 {[%clk 01:31:16]} {[%emt 00:00:29]} exd5 {[%clk 01:19:24]} {[%emt
00:00:02]} 4. Bd3 {[%clk 01:31:34]} {[%emt 00:00:13]} Bd6 {[%clk 01:19:51]}
{[%emt 00:00:03]} 5. h3 {[%clk 01:31:49]} {[%emt 00:00:14]} Nc6 {[%clk
01:20:06]} {[%emt 00:00:16]} 6. Nf3 {[%clk 01:32:02]} {[%emt 00:00:17]} Nge7
{[%clk 01:20:25]} {[%emt 00:00:11]} 7. O-O {[%clk 01:32:14]} {[%emt 00:00:18]}
Bf5 {[%clk 01:20:15]} {[%emt 00:00:40]} 8. Re1 {[%clk 01:31:49]} {[%emt
00:00:55]} Qd7 {[%clk 01:19:35]} {[%emt 00:01:09]} 9. Bxf5 {[%clk 01:30:38]}
{[%emt 00:01:42]} Qxf5 {[%clk 01:19:58]} {[%emt 00:00:06]} 10. c3 {[%clk
01:30:25]} {[%emt 00:00:44]} O-O-O {[%clk 01:19:21]} {[%emt 00:01:06]} 11. a4
{[%clk 01:30:09]} {[%emt 00:00:47]} f6 {[%clk 01:17:24]} {[%emt 00:02:26]} 12.
Nbd2 {[%clk 01:29:19]} {[%emt 00:01:19]} g5 {[%clk 01:14:14]} {[%emt 00:03:42]}
13. b4 {[%clk 01:27:45]} {[%emt 00:02:03]} h5 {[%clk 01:10:51]} {[%emt
00:03:53]} 14. Qe2 {[%clk 01:26:10]} {[%emt 00:02:06]} g4 {[%clk 01:08:00]}
{[%emt 00:03:20]} 15. Nh4 {[%clk 01:25:56]} {[%emt 00:00:41]} Qg5 {[%clk
00:58:21]} {[%emt 00:10:12]} 16. g3 {[%clk 01:24:27]} {[%emt 00:01:59]} Qg7
{[%clk 00:56:08]} {[%emt 00:02:41]} 17. Nb3 {[%clk 01:23:43]} {[%emt 00:01:14]}
gxh3 {[%clk 00:52:11]} {[%emt 00:04:29]} 18. Qe6+ {[%clk 01:23:49]} {[%emt
00:00:24]} Kb8 {[%clk 00:45:30]} {[%emt 00:07:11]} 19. Qxh3 {[%clk 01:23:58]}
{[%emt 00:00:21]} Ng6 {[%clk 00:43:46]} {[%emt 00:02:14]} 20. a5 {[%clk
01:21:18]} {[%emt 00:03:11]} Nce7 {[%clk 00:40:54]} {[%emt 00:03:22]} 21. Kf1
{[%clk 01:18:36]} {[%emt 00:03:11]} Nxh4 {[%clk 00:39:56]} {[%emt 00:01:28]} 22.
gxh4 {[%clk 01:16:30]} {[%emt 00:02:35]} Rhg8 {[%clk 00:39:44]} {[%emt
00:00:43]} 23. Be3 {[%clk 01:15:31]} {[%emt 00:01:29]} Qg6 {[%clk 00:37:20]}
{[%emt 00:02:54]} 24. Rad1 {[%clk 01:14:18]} {[%emt 00:01:43]} Nf5 {[%clk
00:36:06]} {[%emt 00:01:40]} 25. b5 {[%clk 01:13:12]} {[%emt 00:01:41]} Nxe3+
{[%clk 00:35:37]} {[%emt 00:00:58]} 26. Qxe3 {[%clk 01:12:51]} {[%emt
00:00:51]} Qg2+ {[%clk 00:35:50]} {[%emt 00:00:17]} 0-1

[Event "Goteborg Open 2024"]
[Site "Goteborgs Schackcentrum, Vegatan 20, Gothenburg, Sweden"]
[Date "2024.08.04"]
[Round "7.14"]
[White "Helin, Mikael"]
[Black "Evertsson, David"]
[Result "1-0"]
[TimeControl "15 minutes + 5 seconds per move from move one (Round 1 - 4) / 90 minutes + 30 seconds per move from move one (Round 5 - 8)"]
[WhiteTitle "CM"]
[WhiteFideId "1703838"]
[BlackFideId "1777424"]
[WhiteElo "1937"]
[BlackElo "1642"]

1. e4 {[%clk 01:22:17]} {[%emt 00:08:43]} c5 {[%clk 01:30:55]} {[%emt
00:00:05]} 2. c4 {[%clk 01:22:42]} {[%emt 00:00:05]} Nc6 {[%clk 01:31:10]}
{[%emt 00:00:15]} 3. Nc3 {[%clk 01:23:07]} {[%emt 00:00:06]} g6 {[%clk
01:31:17]} {[%emt 00:00:22]} 4. g3 {[%clk 01:23:30]} {[%emt 00:00:07]} Bg7
{[%clk 01:31:41]} {[%emt 00:00:05]} 5. Bg2 {[%clk 01:23:56]} {[%emt 00:00:04]}
a6 {[%clk 01:31:16]} {[%emt 00:00:56]} 6. d3 {[%clk 01:23:57]} {[%emt
00:00:29]} Rb8 {[%clk 01:30:45]} {[%emt 00:01:02]} 7. a4 {[%clk 01:24:09]}
{[%emt 00:00:17]} d6 {[%clk 01:27:52]} {[%emt 00:03:24]} 8. Nge2 {[%clk
01:24:20]} {[%emt 00:00:18]} e6 {[%clk 01:28:00]} {[%emt 00:00:22]} 9. O-O
{[%clk 01:24:28]} {[%emt 00:00:22]} Nge7 {[%clk 01:28:22]} {[%emt 00:00:08]} 10.
Bf4 {[%clk 01:23:13]} {[%emt 00:01:43]} O-O {[%clk 01:27:24]} {[%emt 00:01:30]}
11. Qd2 {[%clk 01:21:41]} {[%emt 00:02:01]} e5 {[%clk 01:14:37]} {[%emt
00:13:19]} 12. Bh6 {[%clk 01:20:53]} {[%emt 00:01:17]} Be6 {[%clk 01:14:18]}
{[%emt 00:00:49]} 13. h3 {[%clk 01:17:46]} {[%emt 00:03:36]} Qd7 {[%clk
01:13:33]} {[%emt 00:01:16]} 14. Kh2 {[%clk 01:17:40]} {[%emt 00:00:36]} f5
{[%clk 01:06:56]} {[%emt 00:07:07]} 15. Bxg7 {[%clk 01:17:47]} {[%emt
00:00:23]} Kxg7 {[%clk 01:07:20]} {[%emt 00:00:06]} 16. Nd5 {[%clk 01:18:07]}
{[%emt 00:00:11]} Bxd5 {[%clk 01:05:36]} {[%emt 00:02:14]} 17. exd5 {[%clk
01:17:33]} {[%emt 00:01:03]} Nd4 {[%clk 01:05:40]} {[%emt 00:00:26]} 18. Nxd4
{[%clk 01:17:46]} {[%emt 00:00:18]} exd4 {[%clk 01:02:43]} {[%emt 00:03:26]} 19.
f4 {[%clk 01:11:38]} {[%emt 00:06:38]} b5 {[%clk 01:02:12]} {[%emt 00:01:01]}
20. b4 {[%clk 01:05:07]} {[%emt 00:07:01]} bxa4 {[%clk 00:58:03]} {[%emt
00:04:39]} 21. bxc5 {[%clk 01:05:01]} {[%emt 00:00:36]} dxc5 {[%clk 00:58:17]}
{[%emt 00:00:16]} 22. Rfe1 {[%clk 01:04:58]} {[%emt 00:00:33]} Nc8 {[%clk
00:57:48]} {[%emt 00:00:59]} 23. Qa5 {[%clk 01:02:42]} {[%emt 00:02:45]} Qa7
{[%clk 00:36:39]} {[%emt 00:21:40]} 24. Re6 {[%clk 01:02:51]} {[%emt 00:00:20]}
Rf6 {[%clk 00:36:46]} {[%emt 00:00:23]} 25. Rae1 {[%clk 01:01:55]} {[%emt
00:01:24]} Rb7 {[%clk 00:34:47]} {[%emt 00:02:32]} 26. Rxf6 {[%clk 01:00:28]}
{[%emt 00:01:57]} Kxf6 {[%clk 00:35:09]} {[%emt 00:00:08]} 27. Qd8+ {[%clk
01:00:34]} {[%emt 00:00:23]} Kf7 {[%clk 00:31:18]} {[%emt 00:04:21]} 28. Qxc8
{[%clk 00:58:54]} {[%emt 00:02:11]} a3 {[%clk 00:29:44]} {[%emt 00:02:03]} 29.
d6 {[%clk 00:53:35]} {[%emt 00:05:49]} Rd7 {[%clk 00:29:10]} {[%emt 00:01:05]}
30. Qe8+ {[%clk 00:53:37]} {[%emt 00:00:26]} Kg7 {[%clk 00:28:40]} {[%emt
00:01:02]} 31. Re7+ {[%clk 00:53:17]} {[%emt 00:00:49]} Rxe7 {[%clk 00:29:01]}
{[%emt 00:00:10]} 32. dxe7 {[%clk 00:53:43]} {[%emt 00:00:04]} Kh6 {[%clk
00:28:26]} {[%emt 00:01:05]} 33. Qf8+ {[%clk 00:54:00]} {[%emt 00:00:13]} Kh5
{[%clk 00:28:47]} {[%emt 00:00:09]} 34. Bf3# {[%emt 00:00:05]} 1-0